bitfinex/quotes_BTCUSD_20250105
["timestamp","ask_amount","ask_price","bid_price","bid_amount"]
[1736092256830,0.59205347,98128.0,98127.0,0.07292343]
[1736092256831,0.59005347,98128.0,98127.0,0.07292343]
[1736092257054,0.59205347,98128.0,98127.0,0.07392343]
[1736092260736,0.51565347,98128.0,98127.0,0.07392343]
[1736092262457,0.51365347,98128.0,98127.0,0.07392343]
[1736092263141,0.51565347,98128.0,98127.0,0.07392343]
[1736092263352,0.51565347,98128.0,98127.0,0.07292343]
[1736092263521,0.51565347,98128.0,98127.0,0.07392343]
[1736092263727,0.51565347,98128.0,98127.0,0.0013185]
[1736092263962,0.59715347,98128.0,98127.0,0.0013185]
[1736092266026,0.59515347,98128.0,98127.0,0.0013185]
[1736092266193,0.59915347,98128.0,98127.0,0.0013185]
[1736092266401,0.59915347,98128.0,98127.0,0.0003185]
[1736092266596,0.59515347,98128.0,98127.0,0.0003185]
[1736092266921,0.60015347,98128.0,98127.0,0.0003185]
[1736092267124,0.59515347,98128.0,98127.0,0.0003185]
[1736092267481,0.59915347,98128.0,98127.0,0.0003185]
[1736092267884,0.59515347,98128.0,98127.0,0.0003185]
[1736092269008,0.74913979,98128.0,98127.0,0.0003185]
[1736092269218,0.75413979,98128.0,98127.0,0.0003185]
[1736092269570,0.74913979,98128.0,98127.0,0.0003185]
[1736092269989,0.75313979,98128.0,98127.0,0.0003185]
[1736092270203,0.75213979,98128.0,98127.0,0.0003185]
[1736092270889,0.74813979,98128.0,98127.0,0.0003185]
[1736092271308,0.75413979,98128.0,98127.0,0.0003185]
[1736092275311,1.02708721,98128.0,98127.0,0.0003185]
[1736092276342,1.35984899,98128.0,98127.0,0.0003185]
[1736092276694,1.35884899,98128.0,98127.0,0.0003185]
[1736092276901,1.36784899,98128.0,98127.0,0.0003185]
[1736092277075,1.36984899,98128.0,98127.0,0.0003185]
[1736092277475,1.36784899,98128.0,98127.0,0.0003185]
[1736092277857,1.36984899,98128.0,98127.0,0.0003185]
[1736092278069,1.26990157,98128.0,98127.0,0.0003185]
[1736092278262,1.23590157,98128.0,98127.0,0.0003185]
[1736092278414,1.08590157,98128.0,98127.0,0.0003185]
[1736092278620,1.04090157,98128.0,98127.0,0.0003185]
[1736092279305,1.37378619,98128.0,98127.0,0.0003185]
[1736092279688,0.85313979,98128.0,98127.0,0.0003185]
[1736092279914,0.86213979,98128.0,98127.0,0.0003185]
[1736092280095,0.85813979,98128.0,98127.0,0.0003185]
[1736092280505,0.87113979,98128.0,98127.0,0.0003185]
[1736092281090,0.86713979,98128.0,98127.0,0.0003185]
[1736092281290,0.85213979,98128.0,98127.0,0.0003185]
[1736092282000,0.84913979,98128.0,98127.0,0.0003185]
[1736092282411,0.95312611,98128.0,98127.0,0.0003185]
[1736092282612,0.96212611,98128.0,98127.0,0.0003185]
[1736092282794,0.85813979,98128.0,98127.0,0.0003185]
[1736092282999,0.84913979,98128.0,98127.0,0.0003185]
[1736092283217,0.86113979,98128.0,98127.0,0.0003185]
[1736092283758,0.84913979,98128.0,98127.0,0.0003185]
[1736092283958,0.85813979,98128.0,98127.0,0.0003185]
[1736092284303,0.85213979,98128.0,98127.0,0.0003185]
[1736092284432,0.86279554,98128.0,98127.0,0.0003185]
[1736092284807,0.85979554,98128.0,98127.0,0.0003185]
[1736092285553,0.86279554,98128.0,98127.0,0.0003185]
[1736092285761,0.85379554,98128.0,98127.0,0.0003185]
[1736092286170,0.86279554,98128.0,98127.0,0.0003185]
[1736092286552,0.87179554,98128.0,98127.0,0.0003185]
[1736092286972,0.85079554,98128.0,98127.0,0.0003185]
[1736092287182,0.85279554,98128.0,98127.0,0.0003185]
[1736092287776,0.86179554,98128.0,98127.0,0.0003185]
[1736092288394,0.85979554,98128.0,98127.0,0.0003185]
[1736092288799,0.90988037,98128.0,98127.0,0.0003185]
[1736092289202,0.85379554,98128.0,98127.0,0.0003185]
[1736092289407,0.86279554,98128.0,98127.0,0.0003185]
[1736092289900,0.85379554,98128.0,98127.0,0.0003185]
[1736092290285,0.85979554,98128.0,98127.0,0.0003185]
[1736092290684,0.86179554,98128.0,98127.0,0.0003185]
[1736092290903,0.96578186,98128.0,98127.0,0.0003185]
[1736092291048,0.85079554,98128.0,98127.0,0.0003185]
[1736092291493,0.85379554,98128.0,98127.0,0.0003185]
[1736092291913,0.85079554,98128.0,98127.0,0.0003185]
[1736092292356,0.85979554,98128.0,98127.0,0.0003185]
[1736092293607,0.99693957,98128.0,98127.0,0.0003185]
[1736092293771,0.99893957,98128.0,98127.0,0.0003185]
[1736092294276,0.99693957,98128.0,98127.0,0.0003185]
[1736092294662,0.85979554,98128.0,98127.0,0.0003185]
[1736092294867,1.19969601,98128.0,98127.0,0.0003185]
[1736092295445,1.19769601,98128.0,98127.0,0.0003185]
[1736092295868,1.18869601,98128.0,98127.0,0.0003185]
[1736092296311,1.19769601,98128.0,98127.0,0.0003185]
[1736092296518,1.29005472,98128.0,98127.0,0.0003185]
[1736092296731,1.29905472,98128.0,98127.0,0.0003185]
[1736092297569,1.29205472,98128.0,98127.0,0.0003185]
[1736092297780,1.14205472,98128.0,98127.0,0.0003185]
[1736092297962,1.14205472,98128.0,98127.0,0.07292343]
[1736092298192,0.95919601,98128.0,98127.0,0.07292343]
[1736092298367,0.85320969,98128.0,98127.0,0.07292343]
[1736092299030,0.86220969,98128.0,98127.0,0.07292343]
[1736092299236,0.85320969,98128.0,98127.0,0.07292343]
[1736092299417,0.51930922,98128.0,98127.0,0.07292343]
[1736092300186,0.51530922,98128.0,98127.0,0.07292343]
[1736092300792,0.51930922,98128.0,98127.0,0.07292343]
[1736092302300,0.51530922,98128.0,98127.0,0.07292343]
[1736092302503,0.51930922,98128.0,98127.0,0.07292343]
[1736092303213,0.52330922,98128.0,98127.0,0.07292343]
[1736092303508,0.61929554,98128.0,98127.0,0.0003185]
[1736092303722,0.61929554,98128.0,98127.0,0.07292343]
[1736092303934,0.62329554,98128.0,98127.0,0.07292343]
[1736092304139,0.61929554,98128.0,98127.0,0.07292343]
[1736092305576,0.62329554,98128.0,98127.0,0.07292343]
[1736092305980,0.61929554,98128.0,98127.0,0.07292343]
[1736092306186,0.62629554,98128.0,98127.0,0.07292343]
[1736092306786,0.76371371,98128.0,98127.0,0.07292343]
[1736092307153,0.76471371,98128.0,98127.0,0.07292343]
[1736092307566,0.76371371,98128.0,98127.0,0.07292343]
[1736092307970,0.76471371,98128.0,98127.0,0.07292343]
[1736092309395,0.62729554,98128.0,98127.0,0.07292343]
[1736092318829,0.52330922,98128.0,98127.0,0.07292343]
[1736092321248,0.52230922,98128.0,98127.0,0.07292343]
[1736092321716,0.51630922,98128.0,98127.0,0.07292343]
[1736092323995,0.52230922,98128.0,98127.0,0.07292343]
[1736092326775,0.61398444,98128.0,98127.0,0.07292343]
[1736092328534,0.52230922,98128.0,98127.0,0.07292343]
[1736092329570,0.61398444,98128.0,98127.0,0.07292343]
[1736092329991,0.61183337,98128.0,98127.0,0.07292343]
[1736092332076,0.52015815,98128.0,98127.0,0.07292343]
[1736092341654,0.65761416,98128.0,98127.0,0.07292343]
[1736092342815,0.61188308,98128.0,98127.0,0.07292343]
[1736092345445,0.52015815,98128.0,98127.0,0.07292343]
[1736092346268,0.52015815,98128.0,98127.0,0.07929858]
[1736092346880,0.61188308,98128.0,98127.0,0.07929858]
[1736092349434,0.52015815,98128.0,98127.0,0.07929858]
[1736092350250,0.52015815,98128.0,98127.0,0.07924858]
[1736092358321,0.65761416,98128.0,98127.0,0.07924858]
[1736092358470,0.65761416,98128.0,98127.0,0.07287343]
[1736092359706,0.85876947,98128.0,98127.0,0.07287343]
[1736092363829,1.19395579,98128.0,98127.0,0.0002685]
[1736092364980,1.19404119,98128.0,98127.0,0.0002685]
[1736092370803,1.18704119,98128.0,98127.0,0.0002685]
[1736092371217,1.19404119,98128.0,98127.0,0.0002685]
[1736092371415,1.18704119,98128.0,98127.0,0.0002685]
[1736092371830,1.19404119,98128.0,98127.0,0.0002685]
[1736092372034,1.18704119,98128.0,98127.0,0.0002685]
[1736092372188,1.10684119,98128.0,98127.0,0.0002685]
[1736092372599,1.11384119,98128.0,98127.0,0.0002685]
[1736092372977,1.11484119,98128.0,98127.0,0.0002685]
[1736092374075,1.10584119,98128.0,98127.0,0.0002685]
[1736092374243,1.11284119,98128.0,98127.0,0.0002685]
[1736092374678,1.10584119,98128.0,98127.0,0.0002685]
[1736092374878,1.11084119,98128.0,98127.0,0.0002685]
[1736092375466,1.11184119,98128.0,98127.0,0.0002685]
[1736092375715,1.10684119,98128.0,98127.0,0.0002685]
[1736092375948,1.10584119,98128.0,98127.0,0.0002685]
[1736092376399,1.10684119,98128.0,98127.0,0.0002685]
[1736092376809,1.10584119,98128.0,98127.0,0.0002685]
[1736092377231,1.11384119,98128.0,98127.0,0.0002685]
[1736092377773,1.10684119,98128.0,98127.0,0.0002685]
[1736092377977,1.34204064,98128.0,98127.0,0.0002685]
[1736092378190,1.33604064,98128.0,98127.0,0.0002685]
[1736092378537,1.34204064,98128.0,98127.0,0.0002685]
[1736092378792,1.44602696,98128.0,98127.0,0.0002685]
[1736092378944,1.34204064,98128.0,98127.0,0.0002685]
[1736092379886,1.42424064,98128.0,98127.0,0.0002685]
[1736092380477,1.19504119,98128.0,98127.0,0.0002685]
[1736092380703,1.18904119,98128.0,98127.0,0.0002685]
[1736092380904,1.18804119,98128.0,98127.0,0.0002685]
[1736092381321,1.19804119,98128.0,98127.0,0.0002685]
[1736092381735,1.20704119,98128.0,98127.0,0.0002685]
[1736092382001,1.20213304,98128.0,98127.0,0.0002685]
[1736092382203,1.2044014,98128.0,98127.0,0.0002685]
[1736092382611,1.2064014,98128.0,98127.0,0.0002685]
[1736092384059,1.1864014,98128.0,98127.0,0.0002685]
[1736092384493,1.1152014,98128.0,98127.0,0.0002685]
[1736092384656,1.1062014,98128.0,98127.0,0.0002685]
[1736092384851,1.1042014,98128.0,98127.0,0.0002685]
[1736092385063,1.1152014,98128.0,98127.0,0.0002685]
[1736092385496,1.1062014,98128.0,98127.0,0.0002685]
[1736092385771,0.85182501,98128.0,98127.0,0.0002685]
[1736092386014,0.86282501,98128.0,98127.0,0.07991343]
[1736092386195,0.86282501,98128.0,98127.0,0.15851343]
[1736092387295,0.85382501,98128.0,98127.0,0.15851343]
[1736092387721,0.51321369,98128.0,98127.0,0.15851343]
[1736092387895,0.52221369,98128.0,98127.0,0.15851343]
[1736092388246,0.51521369,98128.0,98127.0,0.15851343]
[1736092388426,0.51721369,98128.0,98127.0,0.15851343]
[1736092388559,0.51521369,98128.0,98127.0,0.15851343]
[1736092388772,0.51321369,98128.0,98127.0,0.15851343]
[1736092388971,0.51321369,98128.0,98127.0,0.15951343]
[1736092389170,0.51421369,98128.0,98127.0,0.15951343]
[1736092389460,0.51421369,98128.0,98127.0,0.15851343]
[1736092390568,0.51321369,98128.0,98127.0,0.15851343]
[1736092390813,0.51421369,98128.0,98127.0,0.15851343]
[1736092391337,0.51421369,98128.0,98127.0,0.16051343]
[1736092391987,0.51870134,98128.0,98127.0,0.15851343]
[1736092392130,0.51870134,98128.0,98127.0,0.16051343]
[1736092392709,0.51870134,98128.0,98127.0,0.15851343]
[1736092392923,0.51870134,98128.0,98127.0,0.08191343]
[1736092393351,0.51663235,98128.0,98127.0,0.08191343]
[1736092393558,0.51663235,98128.0,98127.0,0.16501343]
[1736092393696,0.51563235,98128.0,98127.0,0.16501343]
[1736092394215,0.51663235,98128.0,98127.0,0.16501343]
[1736092394426,0.51563235,98128.0,98127.0,0.16301343]
[1736092394838,0.51563235,98128.0,98127.0,0.16501343]
[1736092395468,0.51563235,98128.0,98127.0,0.16301343]
[1736092395884,0.51563235,98128.0,98127.0,0.16501343]
[1736092398139,0.5093354,98128.0,98127.0,0.16501343]
[1736092398565,0.5156457,98128.0,98127.0,0.16501343]
[1736092399212,0.5156457,98128.0,98127.0,0.31819975]
[1736092399689,0.5156457,98128.0,98127.0,0.21421343]
[1736092400542,0.5156457,98128.0,98127.0,0.21221343]
[1736092400797,0.5166457,98128.0,98127.0,0.21221343]
[1736092401026,0.5166457,98128.0,98127.0,0.21421343]
[1736092401238,0.5156457,98128.0,98127.0,0.21421343]
[1736092401443,0.5156457,98128.0,98127.0,0.21221343]
[1736092401648,0.5156457,98128.0,98127.0,0.21521343]
[1736092402890,0.5156457,98128.0,98127.0,0.21221343]
[1736092403094,0.5156457,98128.0,98127.0,0.31619975]
[1736092403974,0.5156457,98128.0,98127.0,0.21221343]
[1736092404386,0.5156457,98128.0,98127.0,0.21521343]
[1736092404813,0.5156457,98128.0,98127.0,1.71221343]
[1736092405192,0.5156457,98128.0,98127.0,1.71621343]
[1736092405601,0.5156457,98128.0,98127.0,1.71221343]
[1736092405950,0.5156457,98128.0,98127.0,0.21621343]
[1736092407565,0.5156457,98128.0,98127.0,0.21221343]
[1736092407766,0.5166457,98128.0,98127.0,0.21521343]
[1736092408093,0.5156457,98128.0,98127.0,0.21521343]
[1736092409245,0.5156457,98128.0,98127.0,0.21221343]
[1736092409860,0.5156457,98128.0,98127.0,1.71221343]
[1736092411792,0.5166457,98128.0,98127.0,1.71221343]
[1736092412178,0.5156457,98128.0,98127.0,1.71221343]
[1736092412378,0.5166457,98128.0,98127.0,1.71221343]
[1736092412605,0.5166457,98128.0,98127.0,1.71521343]
[1736092412806,0.5166457,98128.0,98127.0,0.21521343]
[1736092413385,0.5166457,98128.0,98127.0,1.71521343]
[1736092414331,0.5166457,98128.0,98127.0,1.71221343]
[1736092414581,0.5166457,98128.0,98127.0,1.71621343]
[1736092415718,0.5156457,98128.0,98127.0,1.71221343]
[1736092415911,0.5156457,98128.0,98127.0,1.71621343]
[1736092416065,0.5166457,98128.0,98127.0,1.71621343]
[1736092416270,0.5166457,98128.0,98127.0,0.21621343]
[1736092416864,0.5166457,98128.0,98127.0,1.71621343]
[1736092419913,0.5166457,98128.0,98127.0,0.21621343]
[1736092420303,0.5166457,98128.0,98127.0,1.71621343]
[1736092420748,0.5166457,98128.0,98127.0,0.08391343]
[1736092421761,0.5166457,98128.0,98127.0,0.07991343]
[1736092421960,0.5156457,98128.0,98127.0,0.07991343]
[1736092422103,0.5156457,98128.0,98127.0,0.08291343]
[1736092422541,0.5156457,98128.0,98127.0,0.07991343]
[1736092423985,0.5156457,98128.0,98127.0,0.08291343]
[1736092424536,0.5156457,98128.0,98127.0,0.07991343]
[1736092424730,0.5156457,98128.0,98127.0,1.57991343]
[1736092424940,0.5156457,98128.0,98127.0,1.58287343]
[1736092425818,0.5156457,98128.0,98127.0,1.57987343]
[1736092427169,0.5156457,98128.0,98127.0,1.58287343]
[1736092427458,0.5156457,98128.0,98127.0,0.08287343]
[1736092427725,0.5156457,98128.0,98127.0,0.07987343]
[1736092427956,0.5093354,98128.0,98127.0,0.08287343]
[1736092428371,0.51566363,98128.0,98127.0,0.07987343]
[1736092428970,0.51566363,98128.0,98127.0,1.57987343]
[1736092429738,0.51566363,98128.0,98127.0,0.07987343]
[1736092429956,0.51566363,98128.0,98127.0,0.08187343]
[1736092432342,0.51566363,98128.0,98127.0,0.07987343]
[1736092432993,0.51566363,98128.0,98127.0,0.08287343]
[1736092433423,0.51566363,98128.0,98127.0,0.07987343]
[1736092433639,0.51566363,98128.0,98127.0,0.08187343]
[1736092434875,0.51566363,98128.0,98127.0,0.07487343]
[1736092435094,0.51566363,98128.0,98127.0,0.08187343]
[1736092435875,0.51566363,98128.0,98127.0,0.07487343]
[1736092436076,0.51566363,98128.0,98127.0,0.07987343]
[1736092436907,0.51566363,98128.0,98127.0,0.08187343]
[1736092442372,0.51566363,98128.0,98127.0,0.07987343]
[1736092442760,0.51566363,98128.0,98127.0,0.08187343]
[1736092444846,0.51566363,98128.0,98127.0,0.08824798]
[1736092445683,0.51566363,98128.0,98127.0,0.08187343]
[1736092446327,0.51566363,98128.0,98127.0,0.07987343]
[1736092446739,0.51566363,98128.0,98127.0,0.08187343]
[1736092450190,0.5093354,98128.0,98127.0,0.08187343]
[1736092450605,0.51669776,98128.0,98127.0,0.07287343]
[1736092450950,0.51669776,98128.0,98127.0,0.08187343]
[1736092451329,0.51669776,98128.0,98127.0,0.08824837]
[1736092452567,0.51669776,98128.0,98127.0,0.08187343]
[1736092452775,0.51769776,98128.0,98127.0,0.08187343]
[1736092452991,0.51769776,98128.0,98127.0,0.07987343]
[1736092453228,0.51669776,98128.0,98127.0,0.07987343]
[1736092453462,0.51769776,98128.0,98127.0,0.08087343]
[1736092453918,0.51769776,98128.0,98127.0,0.07987343]
[1736092454168,0.51769776,98128.0,98127.0,0.08187343]
[1736092454562,0.51769776,98128.0,98127.0,0.07987343]
[1736092454961,0.51769776,98128.0,98127.0,0.08187343]
[1736092455399,0.51669776,98128.0,98127.0,0.08187343]
[1736092456329,0.51769776,98128.0,98127.0,0.07987343]
[1736092456538,0.51769776,98128.0,98127.0,0.08087343]
[1736092456754,0.51769776,98128.0,98127.0,0.0082685]
[1736092456997,0.51769776,98128.0,98127.0,0.07987343]
[1736092457428,0.51769776,98128.0,98127.0,0.08187343]
[1736092457684,0.51669776,98128.0,98127.0,0.07487343]
[1736092457903,0.59289776,98128.0,98127.0,0.07287343]
[1736092458159,0.59289776,98128.0,98127.0,0.07487343]
[1736092459858,0.69688408,98128.0,98127.0,0.0022685]
[1736092460326,0.69688408,98128.0,98127.0,0.0002685]
[1736092460558,0.78852233,98128.0,98127.0,0.0002685]
[1736092460806,0.78852233,98128.0,98127.0,0.0022685]
[1736092461482,0.78852233,98128.0,98127.0,0.0002685]
[1736092461691,0.78852233,98128.0,98127.0,0.0012685]
[1736092462176,1.03529633,98128.0,98127.0,0.0012685]
[1736092462581,1.03729633,98128.0,98127.0,0.0012685]
[1736092462992,1.03529633,98128.0,98127.0,0.0012685]
[1736092463202,1.04229633,98128.0,98127.0,0.0002685]
[1736092463939,1.04429633,98128.0,98127.0,0.0002685]
[1736092464422,1.04229633,98128.0,98127.0,0.0002685]
[1736092464961,1.04329633,98128.0,98127.0,0.0002685]
[1736092465373,1.03629633,98128.0,98127.0,0.0002685]
[1736092465815,1.04429633,98128.0,98127.0,0.0002685]
[1736092466814,1.06729633,98128.0,98127.0,0.0002685]
[1736092467075,1.44627032,98128.0,98127.0,0.0002685]
[1736092467393,1.44527032,98128.0,98127.0,0.0002685]
[1736092467598,1.55319557,98128.0,98127.0,0.0002685]
[1736092467809,1.55519557,98128.0,98127.0,0.0002685]
[1736092468230,1.55319557,98128.0,98127.0,0.0002685]
[1736092468440,1.54519557,98128.0,98127.0,0.0002685]
[1736092468646,1.32622158,98128.0,98127.0,0.0002685]
[1736092469723,1.26719633,98128.0,98127.0,0.0002685]
[1736092470273,1.36714375,98128.0,98127.0,0.0002685]
[1736092470468,0.458361,98113.0,98111.0,0.000171]
[1736092470724,1.07159732,98113.0,98111.0,0.000171]
[1736092470928,1.07853669,98113.0,98111.0,0.000171]
[1736092472311,1.08053669,98113.0,98111.0,0.000171]
[1736092472517,1.17202717,98113.0,98111.0,0.000171]
[1736092472969,1.17002717,98113.0,98111.0,0.000171]
[1736092473237,1.17802717,98113.0,98111.0,0.000171]
[1736092473439,1.17102717,98113.0,98111.0,0.000171]
[1736092473950,1.07953669,98113.0,98111.0,0.000171]
[1736092474148,1.10253669,98113.0,98111.0,0.000171]
[1736092474577,1.112994,98113.0,98111.0,0.000171]
[1736092474991,1.119994,98113.0,98111.0,0.000171]
[1736092475919,1.112994,98113.0,98111.0,0.000171]
[1736092476147,1.121994,98113.0,98111.0,0.000171]
[1736092476565,1.111994,98113.0,98111.0,0.000171]
[1736092476773,1.114994,98113.0,98111.0,0.000171]
[1736092477437,1.123994,98113.0,98111.0,0.000171]
[1736092477876,1.20793075,98113.0,98111.0,0.000171]
[1736092478094,1.20493075,98113.0,98111.0,0.000171]
[1736092478502,1.123994,98113.0,98111.0,0.000171]
[1736092478711,1.114994,98113.0,98111.0,0.000171]
[1736092479075,1.120994,98113.0,98111.0,0.000171]
[1736092479475,1.049994,98113.0,98111.0,0.000171]
[1736092479705,0.973094,98113.0,98111.0,0.000171]
[1736092479915,0.86910768,98113.0,98111.0,0.000171]
[1736092480062,0.71910768,98113.0,98111.0,0.000171]
[1736092480274,0.72210768,98113.0,98111.0,0.000171]
[1736092480705,0.81359816,98113.0,98111.0,0.000171]
[1736092481794,0.80459816,98113.0,98111.0,0.000171]
[1736092482025,0.72210768,98113.0,98111.0,0.000171]
[1736092482230,0.71310768,98113.0,98111.0,0.000171]
[1736092482643,0.71510768,98113.0,98111.0,0.000171]
[1736092483048,0.71310768,98113.0,98111.0,0.000171]
[1736092483261,0.71710768,98113.0,98111.0,0.000171]
[1736092483467,0.71410768,98113.0,98111.0,0.000171]
[1736092485046,0.71419308,98113.0,98111.0,0.000171]
[1736092485662,0.76049308,98113.0,98111.0,0.000171]
[1736092485873,0.84169308,98113.0,98111.0,0.000171]
[1736092486482,0.9921443,98113.0,98111.0,0.000171]
[1736092486681,1.1421443,98113.0,98111.0,0.000171]
[1736092487989,1.1471443,98113.0,98111.0,0.000171]
[1736092488860,1.1481443,98113.0,98111.0,0.000171]
[1736092489429,1.1431443,98113.0,98111.0,0.000171]
[1736092489707,1.28038002,98113.0,98111.0,0.000171]
[1736092489861,1.28638002,98113.0,98111.0,0.000171]
[1736092490864,1.25891512,98113.0,98111.0,0.000171]
[1736092493589,1.1216794,98113.0,98111.0,0.000171]
[1736092494882,1.1206794,98113.0,98111.0,0.000171]
[1736092495092,1.1216794,98113.0,98111.0,0.000171]
[1736092495290,1.55914611,98113.0,98111.0,0.000171]
[1736092495944,1.66313243,98113.0,98111.0,0.000171]
[1736092496210,1.66213243,98113.0,98111.0,0.000171]
[1736092496617,1.65613243,98113.0,98111.0,0.000171]
[1736092496824,1.66213243,98113.0,98111.0,0.000171]
[1736092497242,1.65613243,98113.0,98111.0,0.000171]
[1736092497452,1.66513243,98113.0,98111.0,0.000171]
[1736092498271,1.56114611,98113.0,98111.0,0.000171]
[1736092498485,1.56314611,98113.0,98111.0,0.000171]
[1736092499725,1.56114611,98113.0,98111.0,0.000171]
[1736092500152,1.56314611,98113.0,98111.0,0.000171]
[1736092500565,1.46319869,98113.0,98111.0,0.000171]
[1736092500777,1.56314611,98113.0,98111.0,0.000171]
[1736092501633,1.46319869,98113.0,98111.0,0.000171]
[1736092502906,1.69190486,98113.0,98111.0,0.000171]
[1736092504167,1.46319869,98113.0,98111.0,0.000171]
[1736092506460,1.93636776,98113.0,98111.0,0.000171]
[1736092508060,1.46319869,98113.0,98111.0,0.000171]
[1736092512125,1.93661163,98113.0,98111.0,0.000171]
[1736092513168,1.97154608,98113.0,98111.0,0.000171]
[1736092514154,1.93661163,98113.0,98111.0,0.000171]
[1736092516263,1.94069363,98113.0,98111.0,0.000171]
[1736092520442,1.89439363,98113.0,98111.0,0.000171]
[1736092530156,1.88539363,98113.0,98111.0,0.000171]
[1736092530461,1.89239363,98113.0,98111.0,0.000171]
[1736092530658,1.88339363,98113.0,98111.0,0.000171]
[1736092530901,1.88539363,98113.0,98111.0,0.000171]
[1736092531097,1.89439363,98113.0,98111.0,0.000171]
[1736092531304,1.89239363,98113.0,98111.0,0.000171]
[1736092531609,1.89339363,98113.0,98111.0,0.000171]
[1736092531817,1.99737995,98113.0,98111.0,0.000171]
[1736092532443,2.30595403,98113.0,98111.0,0.000171]
[1736092533535,1.99737995,98113.0,98111.0,0.000171]
[1736092534634,1.99329795,98113.0,98111.0,0.000171]
[1736092535032,1.88931163,98113.0,98111.0,0.000171]
[1736092544875,1.80811163,98113.0,98111.0,0.000171]
[1736092565026,1.62288753,98113.0,98111.0,0.000171]
[1736092565673,1.80634853,98113.0,98111.0,0.000171]
[1736092573421,1.79634853,98113.0,98111.0,0.000171]
[1736092573841,1.79834853,98113.0,98111.0,0.000171]
[1736092574372,1.80734853,98113.0,98111.0,0.000171]
[1736092575846,1.80534853,98113.0,98111.0,0.000171]
[1736092576053,1.80734853,98113.0,98111.0,0.000171]
[1736092576560,1.79634853,98113.0,98111.0,0.000171]
[1736092577012,1.80834853,98113.0,98111.0,0.000171]
[1736092577215,1.79934853,98113.0,98111.0,0.000171]
[1736092577626,1.80834853,98113.0,98111.0,0.000171]
[1736092583566,1.63534853,98113.0,98111.0,0.000171]
[1736092584806,1.62634853,98113.0,98111.0,0.000171]
[1736092585152,1.39131351,98113.0,98111.0,0.000171]
[1736092585348,1.38231351,98113.0,98111.0,0.000171]
[1736092585559,1.27532719,98113.0,98112.0,0.079471]
[1736092585762,1.26486988,98113.0,98112.0,0.15207593]
[1736092586058,1.21892954,98113.0,98112.0,0.15207593]
[1736092586511,1.21992954,98113.0,98112.0,0.15207593]
[1736092587078,1.22792954,98113.0,98112.0,0.15207593]
[1736092587569,0.83551112,98113.0,98112.0,0.15207593]
[1736092587988,0.84151112,98113.0,98112.0,0.15207593]
[1736092588898,0.69797267,98113.0,98112.0,0.15207593]
[1736092590611,0.70397267,98113.0,98112.0,0.15207593]
[1736092590913,0.69797267,98113.0,98112.0,0.15207593]
[1736092591343,0.79561166,98113.0,98112.0,0.15207593]
[1736092591547,0.79561166,98113.0,98112.0,0.07277593]
[1736092591757,0.89959798,98113.0,98112.0,0.000171]
[1736092592568,0.80795899,98113.0,98112.0,0.000171]
[1736092594217,0.94549744,98113.0,98112.0,0.000171]
[1736092595683,1.1461511,98113.0,98112.0,0.000171]
[1736092598043,0.80795899,98113.0,98112.0,0.000171]
[1736092599432,0.94536449,98113.0,98112.0,0.000171]
[1736092600561,0.80795899,98113.0,98112.0,0.000171]
[1736092602015,0.99142099,98113.0,98110.0,0.04794693]
[1736092602192,0.28744932,98112.0,98110.0,0.04794693]
[1736092602423,0.00520442,98111.0,98110.0,0.04794693]
[1736092602665,0.61844074,98111.0,98110.0,0.04794693]
[1736092604920,0.62344074,98111.0,98110.0,0.04794693]
[1736092605705,0.183467,98110.0,98109.0,0.04794693]
[1736092605935,0.79670332,98110.0,98109.0,0.04794693]
[1736092606130,0.79826475,98110.0,98109.0,0.04794693]
[1736092608309,0.80226475,98110.0,98109.0,0.04794693]
[1736092613134,0.80226475,98110.0,98109.0,0.04803233]
[1736092616678,0.80590923,98110.0,98109.0,0.04803233]
[1736092620142,0.80070332,98110.0,98109.0,0.04803233]
[1736092620552,0.89229839,98110.0,98109.0,0.04803233]
[1736092622905,0.80070332,98110.0,98109.0,0.04803233]
[1736092625528,0.80087412,98110.0,98109.0,0.04803233]
[1736092625783,0.93827962,98110.0,98109.0,0.04803233]
[1736092627093,0.80087412,98110.0,98109.0,0.04803233]
[1736092628305,1.32269607,98110.0,98109.0,0.04803233]
[1736092629436,1.13947477,98110.0,98109.0,0.04803233]
[1736092630440,1.13947477,98110.0,98109.0,8.54e-05]
[1736092630650,1.36885269,98110.0,98109.0,8.54e-05]
[1736092631854,1.36885269,98110.0,98109.0,0.04803233]
[1736092632255,1.13947477,98110.0,98109.0,0.04803233]
[1736092635334,1.36893434,98110.0,98109.0,0.04803233]
[1736092639949,1.13947477,98110.0,98109.0,0.04803233]
[1736092650525,1.14402062,98110.0,98109.0,0.04803233]
[1736092665926,1.14402062,98110.0,98109.0,8.54e-05]
[1736092666240,1.14402062,98110.0,98109.0,0.04803233]
[1736092670206,1.37351409,98110.0,98109.0,0.04803233]
[1736092671223,1.14402062,98110.0,98109.0,0.04803233]
[1736092679274,1.14402062,98110.0,98109.0,8.54e-05]
[1736092679710,1.13947477,98110.0,98109.0,0.04803233]
[1736092680085,1.13947477,98110.0,98109.0,8.54e-05]
[1736092681570,1.13947477,98110.0,98109.0,0.04803233]
[1736092682179,1.13947477,98110.0,98109.0,8.54e-05]
[1736092682384,1.13947477,98110.0,98109.0,0.04803233]
[1736092683642,1.13947477,98110.0,98109.0,8.54e-05]
[1736092685565,1.13947477,98110.0,98109.0,0.04803233]
[1736092690291,1.13947477,98110.0,98109.0,8.54e-05]
[1736092690573,1.13947477,98110.0,98109.0,0.04803233]
[1736092690748,1.13947477,98110.0,98109.0,8.54e-05]
[1736092702222,1.13947477,98110.0,98109.0,0.04803233]
[1736092704884,1.13947477,98110.0,98109.0,8.54e-05]
[1736092705104,1.13947477,98110.0,98109.0,0.04803233]
[1736092705516,1.13947477,98110.0,98109.0,8.54e-05]
[1736092706031,1.13947477,98110.0,98109.0,0.04803233]
[1736092709308,1.28947477,98110.0,98109.0,0.04803233]
[1736092715375,1.28947477,98110.0,98109.0,8.54e-05]
[1736092715796,1.36707477,98110.0,98109.0,8.54e-05]
[1736092716441,1.31247477,98110.0,98109.0,8.54e-05]
[1736092716653,1.39007477,98110.0,98109.0,8.54e-05]
[1736092717492,1.38607477,98110.0,98109.0,8.54e-05]
[1736092717890,1.86649734,98110.0,98109.0,8.54e-05]
[1736092719777,1.86049734,98110.0,98109.0,8.54e-05]
[1736092719989,1.86749734,98110.0,98109.0,8.54e-05]
[1736092720818,1.91111747,98110.0,98109.0,8.54e-05]
[1736092721286,1.91911747,98110.0,98109.0,8.54e-05]
[1736092722319,1.88848717,98110.0,98109.0,8.54e-05]
[1736092722867,1.88948717,98110.0,98109.0,8.54e-05]
[1736092723300,1.88148717,98110.0,98109.0,8.54e-05]
[1736092723501,1.88048717,98110.0,98109.0,8.54e-05]
[1736092723699,1.88848717,98110.0,98109.0,8.54e-05]
[1736092723878,1.88948717,98110.0,98109.0,8.54e-05]
[1736092725949,1.88148717,98110.0,98109.0,8.54e-05]
[1736092726151,1.88048717,98110.0,98109.0,8.54e-05]
[1736092726572,1.88948717,98110.0,98109.0,8.54e-05]
[1736092726831,1.88048717,98110.0,98109.0,8.54e-05]